fUSD/lending_fUSD_20240217
["ID","MTS","AMOUNT","RATE_DAILY","PERIOD"]
[314275748,1708139477601,-177.06895981,0.00052328,7]
[314275749,1708139477612,-500.0,0.00052328,60]
[314275750,1708139477622,-500.0,0.00052328,60]
[314275751,1708139477633,-584.88114557,0.00052328,60]
[314275752,1708139477644,-657.81,0.00052328,60]
[314275753,1708139477654,-500.0,0.00052328,60]
[314275754,1708139477663,-523.96,0.00052328,60]
[314275755,1708139477672,-500.0,0.00052328,60]
[314275756,1708139477682,-500.0,0.00052328,60]
[314275757,1708139477692,-500.0,0.00052328,60]
[314275758,1708139477701,-500.0,0.00052328,60]
[314275759,1708139477711,-854.01,0.00052328,60]
[314275760,1708139477720,-210.87965342,0.00052328,60]
[314275761,1708139477729,-1495.02,0.00052328,60]
[314275762,1708139477738,-500.0,0.00052328,60]
[314275763,1708139477747,-1165.59,0.00052328,60]
[314275764,1708139477757,-500.0,0.00052328,60]
[314275765,1708139477768,-636.17,0.00052328,60]
[314275766,1708139477779,-500.0,0.00052328,60]
[314275767,1708139477788,-893.76,0.00052328,60]
[314275768,1708139477797,-622.67,0.00052328,60]
[314275769,1708139477806,-3136.01,0.00052328,60]
[314275770,1708139477816,-5024.34,0.00052328,60]
[314275771,1708139477826,-500.0,0.00052328,60]
[314275772,1708139477835,-502.24,0.00052328,60]
[314275773,1708139477844,-569.8,0.00052328,60]
[314275774,1708139477853,-500.0,0.00052328,60]
[314275775,1708139477864,-873.0,0.00052328,60]
[314275776,1708139477874,-556.89,0.00052328,60]
[314275777,1708139477883,-500.0,0.00052328,60]
[314275778,1708139477893,-1593.36,0.00052328,60]
[314275779,1708139477902,-3220.88,0.00052328,60]
[314275780,1708139477912,-519.51,0.00052328,60]
[314275781,1708139477921,-500.0,0.00052328,60]
[314275782,1708139477931,-500.0,0.00052328,60]
[314275783,1708139477944,-500.0,0.00052328,60]
[314275784,1708139477953,-937.4,0.00052328,60]
[314275785,1708139477962,-577.85,0.00052328,60]
[314275786,1708139477972,-1846.34,0.00052328,60]
[314275787,1708139477983,-500.0,0.00052328,60]
[314275788,1708139477992,-500.0,0.00052328,60]
[314275789,1708139478002,-1210.8,0.00052328,14]
[314275790,1708139478013,-1111.25,0.00052328,60]
[314275791,1708139478023,-783.66,0.00052328,60]
[314275792,1708139478033,-567.1,0.00052328,60]
[314275793,1708139478043,-523.09,0.00052328,60]
[314275794,1708139478052,-500.0,0.00052328,60]
[314275795,1708139478062,-1634.88,0.00052328,60]
[314275796,1708139478071,-500.0,0.00052328,60]
[314275797,1708139478081,-500.0,0.00052328,60]
[314275798,1708139478090,-500.0,0.00052328,60]
[314275799,1708139478101,-500.0,0.00052328,60]
[314275800,1708139478110,-500.0,0.00052328,60]
[314275801,1708139478119,-500.0,0.00052328,60]
[314275802,1708139478129,-2129.66,0.00052328,60]
[314275803,1708139478138,-500.0,0.00052328,60]
[314275804,1708139478148,-500.0,0.00052328,60]
[314275805,1708139478157,-1935.87,0.00052328,60]
[314275806,1708139478166,-554.4,0.00052328,60]
[314275807,1708139478176,-500.0,0.00052328,60]
[314275808,1708139478186,-972.28,0.00052328,60]
[314275809,1708139478195,-577.36,0.00052328,60]
[314275810,1708139478204,-1034.46,0.00052328,60]
[314275811,1708139478213,-500.0,0.00052328,60]
[314275812,1708139478223,-500.0,0.00052328,60]
[314275813,1708139478232,-500.0,0.00052328,60]
[314275814,1708139478242,-879.44,0.00052328,60]
[314275815,1708139478251,-692.92,0.00052328,60]
[314275816,1708139478261,-718.43,0.00052328,60]
[314275817,1708139478270,-500.0,0.00052328,60]
[314275818,1708139478279,-5123.64,0.00052328,60]
[314275819,1708139478288,-378.44141623,0.00052328,60]
[314275820,1708139478401,-1145.97,0.00052328,60]
[314275821,1708139478410,-12479.19,0.00052328,60]
[314275822,1708139478420,-500.0,0.00052328,60]
[314275823,1708139478429,-738.56,0.00052328,60]
[314275824,1708139478438,-500.0,0.00052387,120]
[314275825,1708139478447,-154.05,0.000524,7]
[314275826,1708139478457,-154.05,0.000524,7]
[314275827,1708139478466,-154.05,0.000524,7]
[314275828,1708139478475,-154.05,0.000524,7]
[314275829,1708139478485,-154.05,0.000524,7]
[314275830,1708139478494,-154.05,0.000524,7]
[314275831,1708139478504,-154.05,0.000524,7]
[314275832,1708139478514,-154.05,0.000524,7]
[314275833,1708139478523,-154.05,0.000524,7]
[314275834,1708139478535,-151.021788,0.00052448,53]
[314275835,1708139478545,-500.0,0.0005247,120]
[314275836,1708139478554,-2665.0,0.000525,33]
[314275837,1708139478563,-200.0,0.000525,30]
[314275838,1708139478573,-192.0,0.000525,30]
[314275839,1708139478582,-158.23203844,0.00052545,60]
[314275840,1708139478591,-500.0,0.00052553,120]
[314275841,1708139478600,-739.89,0.00052602,60]
[314275842,1708139478609,-567.80629827,0.00052602,60]
[314275843,1708139478619,-497.70667002,0.00052602,2]
[314275844,1708139478629,-500.0,0.00052602,60]
[314275845,1708139478638,-500.0,0.00052602,2]
[314275846,1708139478647,-500.0,0.00052602,60]
[314275847,1708139478656,-615.82,0.00052602,60]
[314275848,1708139478665,-500.0,0.00052602,60]
[314275849,1708139478674,-500.0,0.00052602,60]
[314275850,1708139478683,-521.38,0.00052602,2]
[314275851,1708139478692,-526.92,0.00052602,60]
[314275852,1708139478701,-500.0,0.00052602,60]
[314275853,1708139478710,-1162.21,0.00052602,60]
[314275854,1708139478720,-500.0,0.00052602,60]
[314275855,1708139478729,-500.0,0.00052602,2]
[314275856,1708139478738,-1393.94,0.00052602,60]
[314275857,1708139478747,-500.0,0.00052602,60]
[314275858,1708139478756,-594.7043483,0.00052602,60]
[314275859,1708139478765,-500.0,0.00052602,60]
[314275860,1708139478775,-1028.76,0.00052602,2]
[314275861,1708139478784,-500.0,0.00052602,60]
[314275862,1708139478794,-500.0,0.00052602,60]
[314275863,1708139478803,-500.0,0.00052602,60]
[314275864,1708139478813,-657.81,0.00052602,60]
[314275865,1708139478822,-500.0,0.00052602,60]
[314275866,1708139478831,-523.96,0.00052602,60]
[314275867,1708139478840,-500.0,0.00052602,60]
[314275868,1708139478849,-441.86959631,0.00052602,60]
[314275869,1708139478858,-500.0,0.00052602,60]
[314275870,1708139478868,-500.0,0.00052602,60]
[314275871,1708139478877,-854.01,0.00052602,60]
[314275872,1708139478886,-1495.02,0.00052602,60]
[314275873,1708139478895,-500.0,0.00052602,60]
[314275874,1708139478904,-1165.59,0.00052602,60]
[314275875,1708139478914,-500.0,0.00052602,60]
[314275876,1708139478924,-636.17,0.00052602,60]
[314275877,1708139478936,-456.69318095,0.00052602,60]
[314275878,1708139478945,-893.76,0.00052602,60]
[314275879,1708139478954,-622.67,0.00052602,60]
[314275880,1708139478963,-3136.01,0.00052602,60]
[314275881,1708139478973,-5024.34,0.00052602,60]
[314275882,1708139478983,-500.0,0.00052602,60]
[314275883,1708139478993,-502.24,0.00052602,60]
[314275884,1708139479002,-569.8,0.00052602,60]
[314275885,1708139479013,-500.0,0.00052602,60]
[314275886,1708139479023,-556.89,0.00052602,60]
[314275887,1708139479033,-873.0,0.00052602,60]
[314275888,1708139479042,-500.0,0.00052602,60]
[314275889,1708139479052,-1593.36,0.00052602,60]
[314275890,1708139479062,-3220.88,0.00052602,60]
[314275891,1708139479072,-519.51,0.00052602,60]
[314275892,1708139479081,-500.0,0.00052602,60]
[314275893,1708139479090,-500.0,0.00052602,60]
[314275894,1708139479100,-500.0,0.00052602,60]
[314275895,1708139479109,-937.4,0.00052602,60]
[314275896,1708139479119,-577.85,0.00052602,60]
[314275897,1708139479128,-1846.34,0.00052602,60]
[314275898,1708139479138,-500.0,0.00052602,60]
[314275899,1708139479147,-465.09321893,0.00052602,60]
[314275900,1708139479157,-1210.8,0.00052602,14]
[314275901,1708139479166,-1111.25,0.00052602,60]
[314275902,1708139479175,-783.66,0.00052602,60]
[314275903,1708139479184,-567.1,0.00052602,60]
[314275904,1708139479193,-523.09,0.00052602,60]
[314275905,1708139479202,-500.0,0.00052602,60]
[314275906,1708139479211,-1634.88,0.00052602,60]
[314275907,1708139479220,-500.0,0.00052602,60]
[314275908,1708139479229,-500.0,0.00052602,60]
[314275909,1708139479239,-500.0,0.00052602,60]
[314275910,1708139479247,-500.0,0.00052602,60]
[314275911,1708139479256,-154.95817754,0.00052602,60]
[314275912,1708139479265,-500.0,0.00052602,60]
[314275913,1708139479274,-2129.66,0.00052602,60]
[314275914,1708139479284,-500.0,0.00052602,60]
[314275915,1708139479293,-500.0,0.00052602,60]
[314275916,1708139479302,-1935.87,0.00052602,60]
[314275917,1708139479312,-554.4,0.00052602,60]
[314275918,1708139479321,-500.0,0.00052602,60]
[314275919,1708139479330,-972.28,0.00052602,60]
[314275920,1708139479339,-577.36,0.00052602,60]
[314275921,1708139479348,-1034.46,0.00052602,60]
[314275922,1708139479357,-500.0,0.00052602,60]
[314275923,1708139479366,-500.0,0.00052602,60]
[314275924,1708139479376,-500.0,0.00052602,60]
[314275925,1708139479385,-879.44,0.00052602,60]
[314275926,1708139479394,-692.92,0.00052602,60]
[314275927,1708139479403,-718.43,0.00052602,60]
[314275928,1708139479412,-500.0,0.00052602,60]
[314275929,1708139479421,-5123.64,0.00052602,60]
[314275930,1708139479430,-1145.97,0.00052602,60]
[314275931,1708139479439,-12479.19,0.00052602,60]
[314275932,1708139479449,-500.0,0.00052602,60]
[314275933,1708139479458,-738.56,0.00052602,60]
[314275934,1708139479466,-412.02,0.00052603,30]
[314275935,1708139479476,-412.02,0.00052603,30]
[314275936,1708139479485,-412.02,0.00052603,30]
[314275937,1708139479494,-412.02,0.00052603,30]
[314275938,1708139479503,-301.32,0.00052603,30]
[314275939,1708139479512,-500.0,0.00052636,120]
[314275940,1708139479522,-150.0,0.00052695,120]
[314275941,1708139479532,-1254.4,0.000527,4]
[314275942,1708139479542,-500.0,0.00052719,120]
[314275943,1708139479552,-500.0,0.00052802,120]
[314275944,1708139479561,-181.0,0.00052803,120]
[314275945,1708139479570,-739.89,0.00052876,60]
[314275946,1708139479580,-500.0,0.00052876,60]
[314275947,1708139479590,-500.0,0.00052876,2]
[314275948,1708139479599,-500.0,0.00052876,60]
[314275949,1708139479610,-615.82,0.00052876,60]
[314275950,1708139479620,-500.0,0.00052876,60]
[314275951,1708139479629,-500.0,0.00052876,60]
[314275952,1708139479638,-521.38,0.00052876,2]
[314275953,1708139479647,-526.92,0.00052876,60]
[314275954,1708139479657,-500.0,0.00052876,60]
[314275955,1708139479666,-1162.21,0.00052876,60]
[314275956,1708139479675,-382.03450681,0.00052876,60]
[314275957,1708139479687,-500.0,0.00052876,2]
[314275958,1708139479698,-1393.94,0.00052876,60]
[314275959,1708139479707,-500.0,0.00052876,60]
[314275960,1708139479716,-500.0,0.00052876,60]
[314275961,1708139479725,-1028.76,0.00052876,2]
[314275962,1708139479734,-500.0,0.00052876,60]
[314275963,1708139479743,-579.69721338,0.00052876,60]
[314275964,1708139479751,-500.0,0.00052876,60]
[314275965,1708139479761,-657.81,0.00052876,60]
[314275966,1708139479770,-500.0,0.00052876,60]
[314275967,1708139479779,-523.96,0.00052876,60]
[314275968,1708139479788,-500.0,0.00052876,60]
[314275969,1708139479797,-500.0,0.00052876,60]
[314275970,1708139479807,-500.0,0.00052876,60]
[314275971,1708139479815,-854.01,0.00052876,60]
[314275972,1708139479824,-1495.02,0.00052876,60]
[314275973,1708139479834,-500.0,0.00052876,60]
[314275974,1708139479842,-1165.59,0.00052876,60]
[314275975,1708139479853,-500.0,0.00052876,60]
[314275976,1708139479863,-636.17,0.00052876,60]
[314275977,1708139479872,-893.76,0.00052876,60]
[314275978,1708139479881,-622.67,0.00052876,60]
[314275979,1708139479891,-3136.01,0.00052876,60]
[314275980,1708139479900,-5024.34,0.00052876,60]
[314275981,1708139479910,-500.0,0.00052876,60]
[314275982,1708139479919,-502.24,0.00052876,60]
[314275983,1708139479929,-569.8,0.00052876,60]
[314275984,1708139479940,-500.0,0.00052876,60]
[314275985,1708139479949,-556.89,0.00052876,60]
[314275986,1708139479959,-873.0,0.00052876,60]
[314275987,1708139479967,-500.0,0.00052876,60]
[314275988,1708139479978,-1593.36,0.00052876,60]
[314275989,1708139479987,-3220.88,0.00052876,60]
[314275990,1708139479996,-519.51,0.00052876,60]
[314275991,1708139480005,-474.60185512,0.00052876,60]
[314275992,1708139480015,-500.0,0.00052876,60]
[314275993,1708139480024,-313.71906234,0.00052876,60]
[314275994,1708139480034,-937.4,0.00052876,60]
[314275995,1708139480044,-577.85,0.00052876,60]
[314275996,1708139480054,-1846.34,0.00052876,60]
[314275997,1708139480064,-500.0,0.00052876,60]
[314275998,1708139480074,-1210.8,0.00052876,14]
[314275999,1708139480083,-1111.25,0.00052876,60]
[314276000,1708139480092,-783.66,0.00052876,60]
[314276001,1708139480102,-567.1,0.00052876,60]
[314276002,1708139480111,-523.09,0.00052876,60]
[314276003,1708139480121,-500.0,0.00052876,60]
[314276004,1708139480130,-1634.88,0.00052876,60]
[314276005,1708139480140,-500.0,0.00052876,60]
[314276006,1708139480149,-500.0,0.00052876,60]
[314276007,1708139480159,-500.0,0.00052876,60]
[314276008,1708139480168,-500.0,0.00052876,60]
[314276009,1708139480177,-500.0,0.00052876,60]
[314276010,1708139480186,-2129.66,0.00052876,60]
[314276011,1708139480196,-500.0,0.00052876,60]
[314276012,1708139480205,-500.0,0.00052876,60]
[314276013,1708139480215,-1935.87,0.00052876,60]
[314276014,1708139480224,-554.4,0.00052876,60]
[314276015,1708139480233,-500.0,0.00052876,60]
[314276016,1708139480243,-972.28,0.00052876,60]
[314276017,1708139480252,-577.36,0.00052876,60]
[314276018,1708139480261,-1034.46,0.00052876,60]
[314276019,1708139480270,-500.0,0.00052876,60]
[314276020,1708139480279,-500.0,0.00052876,60]
[314276021,1708139480288,-500.0,0.00052876,60]
[314276022,1708139480299,-879.44,0.00052876,60]
[314276023,1708139480308,-692.92,0.00052876,60]
[314276024,1708139480318,-718.43,0.00052876,60]
[314276025,1708139480327,-500.0,0.00052876,60]
[314276026,1708139480337,-5123.64,0.00052876,60]
[314276027,1708139480346,-1145.97,0.00052876,60]
[314276028,1708139480355,-12479.19,0.00052876,60]
[314276029,1708139480365,-500.0,0.00052876,60]
[314276030,1708139480374,-738.56,0.00052876,60]
[314276031,1708139480383,-500.0,0.00052885,120]
[314276032,1708139480392,-33795.56281768,0.000529,30]
[314276033,1708139480401,-27459.57413766,0.000529,30]
[314276034,1708139480410,-268.13633012,0.000529,30]
[314276035,1708139480420,-4540.65540658,0.000529,30]
[314276036,1708139480430,-4616.40459302,0.000529,30]
[314276037,1708139480439,-391.78881407,0.000529,30]
[314276038,1708139480448,-567.75612514,0.000529,120]
[314276039,1708139480457,-3127.52225059,0.000529,14]
[314276040,1708139480466,-4555.2,0.00052957,117]
[314276041,1708139480476,-500.0,0.00052968,120]
[314276042,1708139480485,-200.0,0.00052987,82]
[314276043,1708139480495,-200.0,0.00052987,80]
[314276044,1708139480504,-200.0,0.00052987,78]
[314276045,1708139480513,-3000.0,0.00053,47]
[314276046,1708139480523,-5000.0,0.00053,62]
[314276047,1708139480532,-5000.0,0.00053,62]
[314276048,1708139480543,-70001.041249,0.00053,2]
[314276049,1708139480552,-3000.0,0.00053,47]
[314276050,1708139480560,-5000.0,0.00053,62]
[314276051,1708139480570,-3000.0,0.00053,47]
[314276052,1708139480579,-3000.0,0.00053,47]
[314276053,1708139480588,-5000.0,0.00053,62]
[314276054,1708139480598,-313.95855664,0.00053,53]
[314276055,1708139480607,-5000.0,0.00053,33]
[314276056,1708139480617,-73657.09474397,0.00053,30]
[314276057,1708139480626,-663.87,0.00053,13]
[314276058,1708139480635,-2514.0,0.00053,120]
[314276059,1708139480645,-165.0,0.00053,120]
[314276060,1708139480654,-800.0,0.00053,10]
[314276061,1708139480664,-605.445172,0.00053,10]
[314276062,1708139480674,-207.0,0.00053,10]
[314276063,1708139480683,-200.0,0.00053,120]
[314276064,1708139480693,-500.0,0.00053051,120]
[314276065,1708139480702,-500.0,0.00053134,120]
[314276066,1708139480711,-739.89,0.0005315,60]
[314276067,1708139480721,-500.0,0.0005315,60]
[314276068,1708139480731,-472.50803834,0.0005315,2]
[314276069,1708139480741,-500.0,0.0005315,60]
[314276070,1708139480750,-615.82,0.0005315,60]
[314276071,1708139480759,-493.8386423,0.0005315,60]
[314276072,1708139480769,-246.36097427,0.0005315,60]
[314276073,1708139480779,-521.38,0.0005315,2]
[314276074,1708139480791,-526.92,0.0005315,60]
[314276075,1708139480801,-500.0,0.0005315,60]
[314276076,1708139480810,-1162.21,0.0005315,60]
[314276077,1708139480820,-500.0,0.0005315,2]
[314276078,1708139480830,-1393.94,0.0005315,60]
[314276079,1708139480839,-500.0,0.0005315,60]
[314276080,1708139480849,-500.0,0.0005315,60]
[314276081,1708139480859,-1028.76,0.0005315,2]
[314276082,1708139480868,-500.0,0.0005315,60]
[314276083,1708139480878,-500.0,0.0005315,60]
[314276084,1708139480889,-657.81,0.0005315,60]
[314276085,1708139480898,-500.0,0.0005315,60]
[314276086,1708139480908,-523.96,0.0005315,60]
[314276087,1708139480918,-500.0,0.0005315,60]
[314276088,1708139480929,-500.0,0.0005315,60]
[314276089,1708139480943,-500.0,0.0005315,60]
[314276090,1708139480953,-854.01,0.0005315,60]
[314276091,1708139480963,-1495.02,0.0005315,60]
[314276092,1708139480973,-500.0,0.0005315,60]
[314276093,1708139480984,-1165.59,0.0005315,60]
[314276094,1708139480994,-500.0,0.0005315,60]
[314276095,1708139481005,-636.17,0.0005315,60]
[314276096,1708139481016,-893.76,0.0005315,60]
[314276097,1708139481026,-622.67,0.0005315,60]
[314276098,1708139481036,-3136.01,0.0005315,60]
[314276099,1708139481049,-5024.34,0.0005315,60]
[314276100,1708139481059,-500.0,0.0005315,60]
[314276101,1708139481070,-502.24,0.0005315,60]
[314276102,1708139481080,-569.8,0.0005315,60]
[314276103,1708139481090,-500.0,0.0005315,60]
[314276104,1708139481099,-556.89,0.0005315,60]
[314276105,1708139481109,-873.0,0.0005315,60]
[314276106,1708139481119,-500.0,0.0005315,60]
[314276107,1708139481128,-1593.36,0.0005315,60]
[314276108,1708139481139,-3220.88,0.0005315,60]
[314276109,1708139481149,-519.51,0.0005315,60]
[314276110,1708139481158,-500.0,0.0005315,60]
[314276111,1708139481168,-937.4,0.0005315,60]
[314276112,1708139481177,-577.85,0.0005315,60]
[314276113,1708139481187,-1846.34,0.0005315,60]
[314276114,1708139481196,-500.0,0.0005315,60]
[314276115,1708139481205,-1210.8,0.0005315,14]
[314276116,1708139481215,-1111.25,0.0005315,60]
[314276117,1708139481224,-783.66,0.0005315,60]
[314276118,1708139481233,-567.1,0.0005315,60]
[314276119,1708139481242,-523.09,0.0005315,60]
[314276120,1708139481251,-500.0,0.0005315,60]
[314276121,1708139481261,-1634.88,0.0005315,60]
[314276122,1708139481270,-500.0,0.0005315,60]
[314276123,1708139481279,-500.0,0.0005315,60]
[314276124,1708139481290,-500.0,0.0005315,60]
[314276125,1708139481299,-500.0,0.0005315,60]
[314276126,1708139481308,-500.0,0.0005315,60]
[314276127,1708139481318,-2129.66,0.0005315,60]
[314276128,1708139481328,-500.0,0.0005315,60]
[314276129,1708139481337,-647.53418675,0.0005315,60]
[314276130,1708139481347,-1935.87,0.0005315,60]
[314276131,1708139481357,-554.4,0.0005315,60]
[314276132,1708139481367,-500.0,0.0005315,60]
[314276133,1708139481496,-972.28,0.0005315,60]
[314276134,1708139481506,-577.36,0.0005315,60]
[314276135,1708139481515,-1034.46,0.0005315,60]
[314276136,1708139481525,-500.0,0.0005315,60]
[314276137,1708139481535,-500.0,0.0005315,60]
[314276138,1708139481546,-500.0,0.0005315,60]
[314276139,1708139481555,-879.44,0.0005315,60]
[314276140,1708139481564,-692.92,0.0005315,60]
[314276141,1708139481573,-718.43,0.0005315,60]
[314276142,1708139481582,-500.0,0.0005315,60]
[314276143,1708139481592,-5123.64,0.0005315,60]
[314276144,1708139481601,-1145.97,0.0005315,60]
[314276145,1708139481610,-12479.19,0.0005315,60]
[314276146,1708139481619,-500.0,0.0005315,60]
[314276147,1708139481629,-738.56,0.0005315,60]
[314276148,1708139481639,-269.84842784,0.000532,120]
[314276149,1708139481647,-269.84842781,0.000532,120]
[314276150,1708139481657,-269.84842781,0.000532,120]
[314276151,1708139481666,-269.84842781,0.000532,120]
[314276152,1708139481675,-269.84842781,0.000532,120]
[314276153,1708139481684,-206.0,0.00053209,44]
[314276154,1708139481693,-500.0,0.00053217,120]
[314276155,1708139481702,-2432.95365588,0.00053253,2]
[314276156,1708139481711,-500.0,0.000533,120]
[314276157,1708139481721,-719.27,0.000533,120]
[314276158,1708139481730,-2000.0,0.0005333,120]
[314276159,1708139481739,-181.0,0.00053351,120]
[314276160,1708139481748,-631.3628072,0.00053363,2]
[314276161,1708139481757,-289.3053774,0.00053363,2]
[314276162,1708139481766,-3744.5247891,0.00053363,2]
[314276163,1708139481776,-115945.013906,0.00053363,2]
[314276164,1708139481786,-500.0,0.00053383,120]
[314276165,1708139481797,-85427.70352124,0.000534,120]
[314276166,1708139481806,-583633.21525796,0.000534,120]
[314276167,1708139481815,-739.89,0.00053424,60]
[314276168,1708139481824,-416.58366247,0.00053424,60]
[314276169,1708139481834,-500.0,0.00053424,60]
[314276170,1708139481843,-615.82,0.00053424,60]
[314276171,1708139481853,-521.38,0.00053424,2]
[314276172,1708139481862,-526.92,0.00053424,60]
[314276173,1708139481871,-500.0,0.00053424,60]
[314276174,1708139481881,-1162.21,0.00053424,60]
[314276175,1708139481890,-500.0,0.00053424,2]
[314276176,1708139481899,-1393.94,0.00053424,60]
[314276177,1708139481908,-500.0,0.00053424,60]
[314276178,1708139481917,-500.0,0.00053424,60]
[314276179,1708139481926,-1028.76,0.00053424,2]
[314276180,1708139481939,-500.0,0.00053424,60]
[314276181,1708139481948,-657.81,0.00053424,60]
[314276182,1708139481957,-500.0,0.00053424,60]
[314276183,1708139481966,-523.96,0.00053424,60]
[314276184,1708139481977,-500.0,0.00053424,60]
[314276185,1708139481986,-500.0,0.00053424,60]
[314276186,1708139481996,-238.09942292,0.00053424,60]
[314276187,1708139482005,-854.01,0.00053424,60]
[314276188,1708139482015,-1495.02,0.00053424,60]
[314276189,1708139482024,-500.0,0.00053424,60]
[314276190,1708139482033,-1165.59,0.00053424,60]
[314276191,1708139482043,-500.0,0.00053424,60]
[314276192,1708139482053,-636.17,0.00053424,60]
[314276193,1708139482062,-893.76,0.00053424,60]
[314276194,1708139482072,-622.67,0.00053424,60]
[314276195,1708139482081,-3136.01,0.00053424,60]
[314276196,1708139482091,-5024.34,0.00053424,60]
[314276197,1708139482100,-500.0,0.00053424,60]
[314276198,1708139482110,-502.24,0.00053424,60]
[314276199,1708139482119,-569.8,0.00053424,60]
[314276200,1708139482128,-500.0,0.00053424,60]
[314276201,1708139482138,-556.89,0.00053424,60]
[314276202,1708139482148,-873.0,0.00053424,60]
[314276203,1708139482158,-500.0,0.00053424,60]
[314276204,1708139482167,-1593.36,0.00053424,60]
[314276205,1708139482176,-3220.88,0.00053424,60]
[314276206,1708139482186,-519.51,0.00053424,60]
[314276207,1708139482195,-500.0,0.00053424,60]
[314276208,1708139482205,-937.4,0.00053424,60]
[314276209,1708139482214,-577.85,0.00053424,60]
[314276210,1708139482223,-1846.34,0.00053424,60]
[314276211,1708139482232,-500.0,0.00053424,60]
[314276212,1708139482241,-1210.8,0.00053424,14]
[314276213,1708139482250,-1111.25,0.00053424,60]
[314276214,1708139482258,-783.66,0.00053424,60]
[314276215,1708139482268,-567.1,0.00053424,60]
[314276216,1708139482277,-523.09,0.00053424,60]
[314276217,1708139482286,-500.0,0.00053424,60]
[314276218,1708139482296,-1634.88,0.00053424,60]
[314276219,1708139482305,-500.0,0.00053424,60]
[314276220,1708139482314,-500.0,0.00053424,60]
[314276221,1708139482323,-500.0,0.00053424,60]
[314276222,1708139482332,-500.0,0.00053424,60]
[314276223,1708139482341,-200.12337631,0.00053424,60]
[314276224,1708139482351,-2129.66,0.00053424,60]
[314276225,1708139482360,-500.0,0.00053424,60]
[314276226,1708139482370,-1935.87,0.00053424,60]
[314276227,1708139482379,-554.4,0.00053424,60]
[314276228,1708139482388,-500.0,0.00053424,60]
[314276229,1708139482397,-972.28,0.00053424,60]
[314276230,1708139482406,-577.36,0.00053424,60]
[314276231,1708139482415,-1034.46,0.00053424,60]
[314276232,1708139482424,-500.0,0.00053424,60]
[314276233,1708139482433,-500.0,0.00053424,60]
[314276234,1708139482443,-500.0,0.00053424,60]
[314276235,1708139482451,-879.44,0.00053424,60]
[314276236,1708139482460,-692.92,0.00053424,60]
[314276237,1708139482469,-718.43,0.00053424,60]
[314276238,1708139482478,-500.0,0.00053424,60]
[314276239,1708139482487,-5123.64,0.00053424,60]
[314276240,1708139482496,-1145.97,0.00053424,60]
[314276241,1708139482505,-12479.19,0.00053424,60]
[314276242,1708139482514,-500.0,0.00053424,60]
[314276243,1708139482523,-738.56,0.00053424,60]
[314276244,1708139482532,-151.021788,0.00053448,53]
[314276245,1708139482541,-100000.0,0.00053449,15]
[314276246,1708139482551,-218.45652181,0.00053458,60]
[314276247,1708139482560,-500.0,0.00053466,120]